fUSD/lending_fUSD_20260228
["ID","MTS","AMOUNT","RATE_DAILY","PERIOD"]
[406929935,1772286645859,-1378.0,0.0001715,2]
[406929936,1772286645868,-693.3919763,0.00017154,2]
[406929937,1772286645879,-3500.0,0.00017195,2]
[406929938,1772286645888,-2008.0,0.000172,2]
[406929939,1772286645899,-1378.0,0.00017205,2]
[406929940,1772286645909,-719.04747942,0.00017209,2]
[406929942,1772286645921,-1378.0,0.0001726,2]
[406929943,1772286645931,-745.65223616,0.00017264,2]
[406929944,1772286645940,-170.05,0.000173,2]
[406929945,1772286645951,-1378.0,0.00017315,2]
[406929946,1772286645960,-773.2413689,0.00017319,2]
[406929947,1772286645969,-4284.77493622,0.00017366,2]
[406929949,1772286645979,-20182.76517958,0.00017367,2]
[406929951,1772286645989,-1378.0,0.0001737,2]
[406929953,1772286645999,-801.85129955,0.00017374,2]
[406929955,1772286646009,-1378.0,0.00017424,2]
[406929957,1772286646022,-831.51979763,0.00017429,2]
[406929959,1772286646032,-1378.0,0.00017479,2]
[406929961,1772286646042,-862.28603014,0.00017484,2]
[406929963,1772286646052,-1378.0,0.00017534,2]
[406929964,1772286646061,-894.19061326,0.00017539,2]
[406929967,1772286646071,-1378.0,0.00017589,2]
[406929969,1772286646080,-927.27566595,0.00017594,2]
[406929970,1772286646090,-350.0,0.00017597,2]
[406929972,1772286646099,-2000.0,0.000176,2]
[406929974,1772286646108,-1378.0,0.00017643,2]
[406929976,1772286646118,-961.58486559,0.00017649,2]
[406929978,1772286646127,-1401.69339842,0.00017698,2]
[406929980,1772286646138,-997.16350561,0.00017704,2]
[406929982,1772286646147,-3000.0,0.00017743,2]
[406929984,1772286646156,-2000.0,0.000178,2]
[406929986,1772286646165,-5000.0,0.00017808,2]
[406929988,1772286646175,-500.0,0.00017808,2]
[406929990,1772286646185,-800.0,0.00017808,2]
[406929992,1772286646195,-532.06048,0.0001782,2]
[406929994,1772286646205,-532.06048,0.0001782,2]
[406929996,1772286646215,-500.0,0.00017829,2]
[406929998,1772286646225,-500.0,0.00017829,2]
[406930000,1772286646235,-897.04,0.00017829,2]
[406930002,1772286646245,-14940.76909115,0.0001783,2]
[406930004,1772286646254,-256.0,0.00017846,2]
[406930006,1772286646264,-500.0,0.00017863,2]
[406930008,1772286646275,-500.0,0.00017899,2]
[406930010,1772286646284,-500.0,0.00017899,2]
[406930012,1772286646293,-540.93519323,0.000179,2]
[406930014,1772286646303,-4284.77493622,0.000179,2]
[406930016,1772286646313,-317.53143114,0.000179,2]
[406930018,1772286646322,-186.01588918,0.000179,2]
[406930019,1772286646331,-1183.24497004,0.000179,2]
[406930020,1772286646342,-5562.57052734,0.000179,2]
[406930021,1772286646351,-20182.76517958,0.000179,2]
[406930022,1772286646361,-15970.0,0.000179,2]
[406930023,1772286646371,-500.0,0.00017918,2]
[406930024,1772286646380,-50000.0,0.0001792,2]
[406930025,1772286646390,-500.0,0.00017972,2]
[406930026,1772286646404,-372.998721,0.00017976,2]
[406930027,1772286646414,-163.6142786,0.0001799,2]
[406930028,1772286646423,-500.0,0.00017998,2]
[406930030,1772286646432,-876.96,0.00017998,2]
[406930031,1772286646449,-500.0,0.00017999,2]
[406930033,1772286646458,-500.0,0.00017999,2]
[406930034,1772286646467,-500.0,0.00017999,2]
[406930035,1772286646477,-500.0,0.00017999,2]
[406930036,1772286646486,-500.0,0.00017999,2]
[406930037,1772286646495,-586.80631414,0.00017999,2]
[406930038,1772286646505,-330.36078572,0.00017999,2]
[406930039,1772286646515,-500.0,0.00017999,2]
[406930040,1772286646526,-500.0,0.00017999,2]
[406930041,1772286646535,-500.0,0.00017999,2]
[406930042,1772286646545,-188.63807991,0.00017999,2]
[406930043,1772286646555,-1304.3377296,0.00017999,2]
[406930044,1772286646564,-500.0,0.00017999,2]
[406930045,1772286646573,-500.0,0.00017999,2]
[406930046,1772286646583,-500.0,0.00017999,2]
[406930047,1772286646593,-500.0,0.00017999,2]
[406930048,1772286646602,-1024.6838524,0.00017999,2]
[406930049,1772286646611,-16743.6711492,0.00017999,2]
[406930050,1772286646625,-300.0,0.00017999,2]
[406930051,1772286646634,-1343.2311113,0.00017999,2]
[406930052,1772286646789,-897.04,0.00017999,2]
[406930053,1772286646800,-897.04,0.00017999,2]
[406930054,1772286646811,-897.04,0.00017999,2]
[406930055,1772286646821,-897.04,0.00017999,2]
[406930056,1772286646831,-897.04,0.00017999,2]
[406930057,1772286646842,-897.04,0.00017999,2]
[406930058,1772286646855,-897.04,0.00017999,2]
[406930059,1772286646865,-897.04,0.00017999,2]
[406930060,1772286646875,-897.04,0.00017999,2]
[406930061,1772286646885,-897.21521615,0.00017999,2]
[406930062,1772286646895,-300.0,0.00017999,2]
[406930063,1772286646905,-292.6907697,0.00017999,2]
[406930064,1772286646915,-500.0,0.00017999,2]
[406930065,1772286646926,-500.0,0.00017999,2]
[406930066,1772286646935,-500.0,0.00017999,2]
[406930067,1772286646945,-500.0,0.00017999,2]
[406930068,1772286646956,-500.0,0.00017999,2]
[406930069,1772286646965,-500.0,0.00017999,2]
[406930070,1772286646979,-281.09297896,0.00017999,2]
[406930071,1772286646988,-300.0,0.00017999,2]
[406930072,1772286646998,-323.65928545,0.00017999,2]
[406930073,1772286647008,-876.96,0.00017999,2]
[406930074,1772286647024,-876.96,0.00017999,2]
[406930075,1772286647033,-876.96,0.00017999,2]
[406930076,1772286647043,-876.96,0.00017999,2]
[406930077,1772286647053,-876.96,0.00017999,2]
[406930078,1772286647064,-876.96,0.00017999,2]
[406930079,1772286647074,-876.96,0.00017999,2]
[406930080,1772286647084,-876.96,0.00017999,2]
[406930081,1772286647094,-877.19543711,0.00017999,2]
[406930082,1772286647103,-195.66587194,0.00017999,2]
[406930083,1772286647113,-3614606.50948615,0.00018,2]
[406930084,1772286647122,-2097.47136,0.00018,2]
[406930085,1772286647132,-115100.11564617,0.00018,2]
[406930086,1772286647141,-151.0,0.00018,2]
[406930087,1772286647151,-320.0,0.00018,120]
[406930088,1772286647160,-320.0,0.00018,120]
[406930089,1772286647170,-86550.75690862,0.00018,2]
[406930091,1772286647268,-639.0942797,0.00018,2]
[406930092,1772286647279,-307.76778424,0.00018,2]
[406930093,1772286647291,-17007.81918748,0.00018,2]
[406930094,1772286647302,-34646.86462584,0.00018,2]
[406930095,1772286647313,-2987.2,0.00018,2]
[406930096,1772286647324,-2095.592,0.00018,2]
[406930097,1772286647335,-1603.7496992,0.00018,2]
[406930098,1772286647346,-2137.53292693,0.00018,2]
[406930099,1772286647357,-699.0815797,0.00018,2]
[406930100,1772286647367,-7501.42315037,0.00018,2]
[406930101,1772286647379,-3091.41082044,0.00018,2]
[406930102,1772286647390,-2379.83911014,0.00018,2]
[406930103,1772286647414,-272.50776832,0.00018,2]
[406930105,1772286647530,-8609.40480116,0.00018,2]
[406930106,1772286647542,-258.63162805,0.00018,2]
[406930107,1772286647561,-29820.69037317,0.00018,2]
[406930108,1772286647575,-13727.76287544,0.00018,2]
[406930109,1772286647588,-1620.66192896,0.00018,2]
[406930110,1772286865688,230.34,0.000171,117]
[406930118,1772287769255,-203.0,8.001e-05,2]
[406930119,1772287769277,-275.0,8.002e-05,2]
[406930120,1772287769298,-1200.0,8.002e-05,2]
[406930121,1772287769319,-300.0,8.002e-05,2]
[406930122,1772287769339,-300.0,8.002e-05,2]
[406930123,1772287769359,-409.04003116,8.003e-05,2]
[406930124,1772287769380,-500.0,8.003e-05,2]
[406930125,1772287769400,-500.0,8.003e-05,2]
[406930126,1772287769419,-500.0,8.003e-05,2]
[406930127,1772287769439,-500.0,8.003e-05,2]
[406930128,1772287769459,-500.0,8.003e-05,2]
[406930129,1772287769479,-500.0,8.003e-05,2]
[406930130,1772287769501,-407.96536498,8.003e-05,2]
[406930131,1772287769521,-326.85756884,8.003e-05,2]
[406930132,1772287769541,-217.0,8.003e-05,2]
[406930133,1772287769563,-2222.814578,8.685e-05,2]
[406930134,1772287769584,-200.0,8.729e-05,2]
[406930135,1772287769606,-200.0,8.729e-05,2]
[406930136,1772287769632,-200.0,8.729e-05,2]
[406930137,1772287769655,-150.0,8.729e-05,2]
[406930138,1772287769676,-150.0,8.729e-05,2]
[406930139,1772287769697,-200.0,8.729e-05,2]
[406930140,1772287769718,-38.32245702,8.729e-05,2]
[406930141,1772287771029,-111.67754298,8.729e-05,2]
[406930142,1772287771051,-150.0,8.783e-05,2]
[406930143,1772287771072,-150.0,8.784e-05,2]
[406930144,1772287771093,-150.0,8.784e-05,2]
[406930145,1772287771114,-200.0,8.784e-05,2]
[406930146,1772287771136,-1680.0,8.802e-05,2]
[406930147,1772287771160,-420.0,8.802e-05,2]
[406930148,1772287771181,-5059.87244176,8.802e-05,2]
[406930149,1772287771201,-150.0,8.839e-05,2]
[406930150,1772287771225,-150.0,8.839e-05,2]
[406930151,1772287771247,-200.0,8.893e-05,2]
[406930152,1772287771267,-258.06666908,8.893e-05,2]
[406930153,1772287771286,-1320.38334618,8.993e-05,2]
[406930154,1772287771837,-10000.0,8.993e-05,2]
[406930155,1772287772416,-10000.0,8.993e-05,2]
[406930156,1772287773137,-3205.689956,8.993e-05,2]
[406930157,1772287774053,-10000.0,8.993e-05,2]
[406930158,1772287774367,-3543.40236039,8.993e-05,2]
[406930159,1772287774389,-500.0,9.003e-05,2]
[406930160,1772287774411,-500.0,9.003e-05,2]
[406930161,1772287774431,-651.83491207,9.003e-05,2]
[406930162,1772287774452,-500.0,9.003e-05,2]
[406930163,1772287774474,-500.0,9.003e-05,2]
[406930164,1772287774495,-874.08423056,9.003e-05,2]
[406930165,1772287774519,-889.12448335,9.003e-05,2]
[406930166,1772287774541,-500.0,9.003e-05,2]
[406930167,1772287774562,-500.0,9.003e-05,2]
[406930168,1772287774589,-500.0,9.003e-05,2]
[406930169,1772287774623,-500.0,9.003e-05,2]
[406930170,1772287774645,-41.55401363,9.003e-05,2]
[406930171,1772287776565,-458.44598637,9.003e-05,2]
[406930172,1772287776585,-500.0,9.003e-05,2]
[406930173,1772287776605,-770.08998658,9.003e-05,2]
[406930174,1772287776625,-799.26635576,9.003e-05,2]
[406930175,1772287776644,-818.6561324,9.003e-05,2]
[406930176,1772287776664,-500.0,9.003e-05,2]
[406930177,1772287776684,-500.0,9.003e-05,2]
[406930178,1772287776703,-779.42317605,9.003e-05,2]
[406930179,1772287776722,-500.0,9.003e-05,2]
[406930180,1772287776939,-500.0,9.003e-05,2]
[406930181,1772287776962,-500.0,9.003e-05,2]
[406930182,1772287776983,-500.0,9.003e-05,2]
[406930183,1772287777004,-500.0,9.003e-05,2]
[406930184,1772287777029,-500.0,9.003e-05,2]
[406930185,1772287777050,-500.0,9.003e-05,2]
[406930186,1772287777071,-500.0,9.003e-05,2]
[406930187,1772287777091,-500.0,9.003e-05,2]
[406930188,1772287777112,-374.11836284,9.003e-05,2]
[406930189,1772287778986,-125.88163716,9.003e-05,2]
[406930190,1772287779007,-500.0,9.003e-05,2]
[406930191,1772287779028,-500.0,9.003e-05,2]
[406930192,1772287779049,-500.0,9.003e-05,2]
[406930193,1772287779069,-500.0,9.003e-05,2]
[406930194,1772287779089,-500.0,9.003e-05,2]
[406930195,1772287779114,-150.99,9.003e-05,2]
[406930196,1772287779133,-2987.78,9.003e-05,2]
[406930197,1772287779156,-510.37,9.003e-05,2]
[406930198,1772287779177,-3724.97836284,9.003e-05,2]
[406930199,1772287780800,-6275.01163716,9.003e-05,2]
[406930200,1772287780822,-150.99,9.003e-05,2]
[406930201,1772287780843,-299.99,9.003e-05,2]
[406930202,1772287780865,-3274.00836284,9.003e-05,2]
[406930203,1772287787315,-1294.19163716,9.003e-05,2]
[406930204,1772287787336,-350.01,9.003e-05,2]
[406930205,1772287787356,-348.57,9.003e-05,2]
[406930206,1772287787375,-1543.68,9.003e-05,2]
[406930207,1772287787396,-3674.39,9.003e-05,2]
[406930212,1772287832214,-255.0,9.661e-05,2]
[406930214,1772287832223,-305.87669946,0.00010152,2]
[406930222,1772287832272,-1757.97000582,9.958e-05,2]
[406930223,1772287832281,-694.12330054,0.00010152,2]
[406930225,1772287832291,-331.0,0.00010627,2]
[406930226,1772287832301,-150.0,0.00010959,2]
[406930227,1772287832311,-160.11,0.00011267,2]
[406930228,1772287832320,-646.68928325,0.0001142,2]
[406930229,1772287832336,-553.31071675,0.0001142,2]
[406930230,1772287832346,-1000.0,0.00011421,2]
[406930231,1772287832356,-1437.05,0.00011507,2]
[406930232,1772287832365,-166.66,0.00011824,2]
[406930233,1772287832375,-250.0,0.00011896,2]
[406930234,1772287832385,-500.0,0.0001207,2]
[406930235,1772287832398,-500.0,0.0001207,2]
[406930236,1772287832408,-500.0,0.0001207,2]
[406930237,1772287832417,-500.0,0.0001207,2]
[406930238,1772287832427,-500.0,0.0001207,2]
[406930239,1772287832437,-500.0,0.0001207,2]
[406930240,1772287832447,-500.0,0.0001207,2]
[406930241,1772287832457,-500.0,0.0001207,2]
[406930242,1772287832467,-500.0,0.0001207,2]
[406930243,1772287832476,-500.0,0.0001207,2]
[406930244,1772287832486,-500.0,0.0001207,2]
[406930245,1772287832496,-500.0,0.0001207,2]
[406930246,1772287832506,-500.0,0.0001207,2]
[406930247,1772287832515,-500.0,0.0001207,2]
[406930248,1772287832525,-500.0,0.0001207,2]
[406930249,1772287832535,-500.0,0.0001207,2]
[406930250,1772287832544,-735.13344,0.0001207,2]
[406930251,1772287832558,-500.0,0.0001207,2]
[406930252,1772287832572,-500.0,0.0001207,2]
[406930253,1772287832582,-500.0,0.0001207,2]
[406930254,1772287832594,-500.0,0.0001207,2]
[406930255,1772287832604,-500.0,0.0001207,2]
[406930256,1772287832614,-500.0,0.0001207,2]
[406930257,1772287832623,-500.0,0.0001207,2]
[406930258,1772287832633,-500.0,0.0001207,2]
[406930259,1772287832643,-500.0,0.0001207,2]
[406930260,1772287832653,-500.0,0.0001207,2]
[406930261,1772287832663,-500.0,0.0001207,2]
[406930262,1772287832674,-500.97875071,0.0001207,2]
[406930263,1772287832683,-500.0,0.0001207,2]
[406930264,1772287832693,-500.0,0.0001207,2]
[406930265,1772287832702,-500.0,0.0001207,2]
[406930266,1772287832712,-500.0,0.0001207,2]
[406930267,1772287832722,-500.0,0.0001207,2]
[406930268,1772287832732,-500.0,0.0001207,2]
[406930269,1772287832742,-500.0,0.0001207,2]
[406930270,1772287832752,-500.0,0.0001207,2]
[406930271,1772287832762,-500.0,0.0001207,2]
[406930272,1772287832771,-500.0,0.0001207,2]
[406930274,1772287832781,-500.0,0.0001207,2]
[406930276,1772287832794,-500.0,0.0001207,2]
[406930278,1772287832807,-500.0,0.0001207,2]
[406930280,1772287832817,-500.0,0.0001207,2]
[406930282,1772287832826,-500.0,0.0001207,2]
[406930283,1772287832836,-500.0,0.0001207,2]
[406930285,1772287832845,-753.2864,0.0001207,2]
[406930287,1772287832854,-500.0,0.0001207,2]
[406930289,1772287832863,-160.11,0.00012071,2]
[406930291,1772287832873,-29999.99,0.00012087,2]
[406930293,1772287832882,-9999.99,0.00012087,2]
[406930295,1772287832891,-915.2,0.00012087,2]
[406930296,1772287832901,-166.66,0.00012214,2]
[406930297,1772287832911,-1475.0,0.00012562,2]
[406930298,1772287832920,-166.66,0.00012605,2]
[406930299,1772287832930,-7138.28153238,0.0001269,2]
[406930300,1772287832940,-1000.0,0.0001269,2]
[406930301,1772287832949,-2500.0,0.00012698,2]
[406930302,1772287832959,-4133.7097,0.00012699,2]
[406930303,1772287832969,-38801.22519235,0.00012699,2]
[406930304,1772287832981,-1254.41808677,0.00012699,2]
[406930305,1772287833006,-4932.42855805,0.00012699,2]
[406930306,1772287833018,-569.13169042,0.00012699,2]
[406930314,1772287838300,-3435.85175103,0.00012131,2]
[406930316,1772287838311,-7457.03017241,0.00012699,2]
[406930318,1772287838321,-2223.68868751,0.000127,3]
[406930319,1772287838330,-1122.54247172,0.000127,3]
[406930320,1772287838340,-750.77020196,0.000127,3]
[406930321,1772287838414,-2040.32511194,0.000127,3]
[406930322,1772287838424,-1188.22367511,0.000127,3]
[406930323,1772287838433,-1110.85922456,0.000127,3]
[406930324,1772287838442,-22381.8820903,0.00012772,2]
[406930325,1772287838452,-500.0,0.0001279,2]
[406930326,1772287838461,-500.0,0.0001279,2]
[406930327,1772287838470,-500.0,0.0001279,2]
[406930328,1772287838480,-500.0,0.0001279,2]
[406930329,1772287838489,-500.0,0.0001279,2]
[406930330,1772287838499,-500.0,0.0001279,2]
[406930331,1772287838509,-500.0,0.0001279,2]
[406930332,1772287838518,-500.0,0.0001279,2]
[406930333,1772287838528,-500.0,0.0001279,2]
[406930334,1772287838537,-500.0,0.0001279,2]
[406930335,1772287838546,-500.0,0.0001279,2]
[406930336,1772287838555,-500.0,0.0001279,2]
[406930337,1772287838565,-500.0,0.0001279,2]
[406930338,1772287838575,-500.0,0.0001279,2]
[406930340,1772287838585,-500.0,0.0001279,2]
[406930342,1772287838594,-151.0,0.0001279,2]
[406930343,1772287838603,-151.0,0.0001279,2]
[406930344,1772287838612,-151.0,0.0001279,2]
[406930345,1772287838622,-151.0,0.0001279,2]
[406930346,1772287838631,-151.0,0.0001279,2]
[406930347,1772287838640,-151.0,0.0001279,2]
[406930348,1772287838650,-151.0,0.0001279,2]
[406930349,1772287838659,-151.0,0.0001279,2]
[406930350,1772287838668,-151.0,0.0001279,2]
[406930351,1772287838678,-151.0,0.0001279,2]
[406930352,1772287838687,-151.0,0.0001279,2]
[406930354,1772287838696,-151.0,0.0001279,2]
[406930356,1772287838705,-4862.58771197,0.00012798,2]
[406930358,1772287838714,-628.8649451,0.00012799,2]
[406930359,1772287838723,-444.5440036,0.00012799,2]
[406930361,1772287838733,-1511.80666641,0.00012799,2]
[406930363,1772287838743,-7151.8763923,0.00012799,2]
[406930365,1772287838752,-45540.80141432,0.0001285,2]
[406930369,1772287840567,-54459.19858468,0.0001285,2]
[406930370,1772287840577,-150.0,0.00012872,2]
[406930371,1772287840586,-150.0,0.00012872,2]
[406930372,1772287840596,-160.11,0.00012876,2]
[406930373,1772287840606,-534.47331008,0.00012889,2]
[406930374,1772287840615,-151.0,0.00012896,2]
[406930375,1772287840626,-151.0,0.00012896,2]
[406930376,1772287840636,-151.0,0.00012896,2]
[406930377,1772287840646,-155.0,0.00012898,2]
[406930378,1772287840657,-32888.5933,0.00012899,2]
[406930379,1772287840666,-1000.0,0.00012899,2]
[406930380,1772287840676,-288.1281186,0.00012927,2]
[406930381,1772287840686,-166.66,0.00012995,2]
[406930382,1772287840695,-456.97377821,0.00013,15]
[406930383,1772287840706,-10911.00584669,0.00013232,2]
[406930384,1772287840860,-786.05032635,0.00013232,2]
[406930385,1772287840871,-1625.08597875,0.00013232,2]
[406930386,1772287841034,-9059.7399385,0.00013232,2]
[406930387,1772287841044,-7138.28153231,0.00013269,2]
[406930388,1772287841053,-166.66,0.00013385,2]
[406930389,1772287841065,-4862.58771195,0.00013527,2]
[406930390,1772287841075,-628.8649451,0.00013649,2]
[406930391,1772287841085,-160.11,0.00013681,2]
[406930392,1772287841094,-22381.88209029,0.00013692,2]
[406930393,1772287841104,-151.0,0.00013695,2]
[406930395,1772287841113,-500.0,0.00013698,2]
[406930397,1772287841123,-500.0,0.00013698,2]
[406930398,1772287841132,-500.0,0.00013698,2]
[406930399,1772287841142,-500.0,0.00013698,2]
[406930400,1772287841151,-500.0,0.00013698,2]
[406930401,1772287841161,-439.79063626,0.00013698,2]
[406930403,1772287841171,-601.46010123,0.00013698,2]
[406930405,1772287841181,-500.0,0.00013698,2]
[406930407,1772287841192,-500.0,0.00013698,2]
[406930409,1772287841202,-500.0,0.00013698,2]
[406930411,1772287841211,-500.0,0.00013698,2]
[406930413,1772287841222,-500.0,0.00013698,2]
[406930415,1772287841231,-500.0,0.00013698,2]
[406930417,1772287841241,-500.0,0.00013698,2]
[406930419,1772287841251,-329.64340271,0.00013698,2]
[406930421,1772287841262,-500.0,0.00013698,2]
[406930423,1772287841271,-500.0,0.00013698,2]
[406930425,1772287841281,-500.0,0.00013698,2]
[406930427,1772287841290,-500.0,0.00013698,2]
[406930428,1772287841300,-161.88293327,0.00013698,2]
[406930431,1772287841310,-500.0,0.00013698,2]
[406930432,1772287841320,-500.0,0.00013698,2]
[406930434,1772287841329,-500.0,0.00013698,2]
[406930436,1772287841339,-500.0,0.00013698,2]
[406930438,1772287841348,-500.0,0.00013698,2]
[406930440,1772287841358,-500.0,0.00013698,2]
[406930442,1772287841367,-500.0,0.00013698,2]
[406930444,1772287841377,-500.0,0.00013698,2]
[406930446,1772287841388,-500.0,0.00013698,2]
[406930449,1772287841398,-500.0,0.00013698,2]
[406930451,1772287841408,-500.0,0.00013698,2]
[406930453,1772287841418,-500.0,0.00013698,2]
[406930454,1772287841427,-500.0,0.00013698,2]
[406930456,1772287841437,-500.0,0.00013698,2]
[406930458,1772287841447,-500.0,0.00013698,2]
[406930460,1772287841456,-500.0,0.00013698,2]
[406930462,1772287841465,-500.0,0.00013698,2]
[406930464,1772287841475,-500.0,0.00013698,2]
[406930466,1772287841484,-500.0,0.00013698,2]
[406930468,1772287841493,-500.0,0.00013698,2]
[406930469,1772287841503,-500.0,0.00013698,2]
[406930470,1772287841513,-500.0,0.00013698,2]
[406930471,1772287841523,-500.0,0.00013698,2]
[406930472,1772287841532,-500.0,0.00013698,2]
[406930473,1772287841542,-500.0,0.00013698,2]
[406930474,1772287841551,-500.0,0.00013698,2]
[406930475,1772287841561,-500.0,0.00013698,2]
[406930476,1772287841573,-500.0,0.00013698,2]
[406930477,1772287841582,-500.0,0.00013698,2]
[406930478,1772287841592,-500.0,0.00013698,2]
[406930479,1772287841601,-500.0,0.00013698,2]
[406930480,1772287841611,-500.0,0.00013698,2]
[406930481,1772287841620,-500.0,0.00013698,2]
[406930482,1772287841630,-440.49444221,0.00013698,2]
[406930483,1772287841640,-500.0,0.00013698,2]
[406930484,1772287841650,-500.0,0.00013698,2]
[406930485,1772287841659,-500.0,0.00013698,2]
[406930486,1772287841669,-500.0,0.00013698,2]
[406930487,1772287841679,-500.0,0.00013698,2]
[406930488,1772287841688,-500.0,0.00013698,2]
[406930489,1772287841698,-500.0,0.00013698,2]
[406930490,1772287841708,-500.0,0.00013698,2]
[406930491,1772287841717,-500.0,0.00013698,2]
[406930492,1772287841727,-500.0,0.00013698,2]
[406930493,1772287841737,-500.0,0.00013698,2]
[406930494,1772287841746,-500.0,0.00013698,2]
[406930495,1772287841755,-500.0,0.00013698,2]
[406930496,1772287841765,-500.0,0.00013698,2]
[406930497,1772287841774,-500.0,0.00013698,2]
[406930498,1772287841784,-500.0,0.00013698,2]
[406930499,1772287841794,-420.02604084,0.00013698,2]
[406930500,1772287841803,-533.57,0.00013698,2]
[406930501,1772287841814,-533.57,0.00013698,2]
[406930502,1772287841823,-533.57,0.00013698,2]
[406930503,1772287841832,-533.57,0.00013698,2]
[406930504,1772287841842,-533.57,0.00013698,2]
[406930505,1772287841852,-533.57,0.00013698,2]
[406930506,1772287841861,-533.57,0.00013698,2]
[406930507,1772287841871,-533.57,0.00013698,2]
[406930508,1772287841880,-533.57,0.00013698,2]
[406930509,1772287841889,-533.57,0.00013698,2]
[406930510,1772287841899,-533.57,0.00013698,2]
[406930511,1772287841908,-533.57,0.00013698,2]
[406930512,1772287841917,-533.57,0.00013698,2]
[406930513,1772287841927,-533.57,0.00013698,2]
[406930514,1772287841936,-533.57,0.00013698,2]
[406930515,1772287841946,-533.57,0.00013698,2]
[406930516,1772287841957,-533.57,0.00013698,2]
[406930517,1772287841966,-533.57,0.00013698,2]
[406930518,1772287841976,-533.57,0.00013698,2]
[406930519,1772287841985,-508.5684283,0.00013698,2]
[406930520,1772287841995,-500.0,0.00013698,2]
[406930521,1772287842004,-500.0,0.00013698,2]
[406930522,1772287842014,-500.0,0.00013698,2]
[406930523,1772287842023,-500.0,0.00013698,2]
[406930524,1772287842033,-500.0,0.00013698,2]
[406930525,1772287842042,-500.0,0.00013698,2]
[406930526,1772287842052,-500.0,0.00013698,2]
[406930527,1772287842063,-500.0,0.00013698,2]
[406930528,1772287842073,-500.0,0.00013698,2]
[406930529,1772287842083,-500.0,0.00013698,2]
[406930530,1772287842093,-500.0,0.00013698,2]
[406930531,1772287842108,-500.0,0.00013698,2]
[406930532,1772287842118,-500.0,0.00013698,2]
[406930533,1772287842128,-500.0,0.00013698,2]
[406930534,1772287842138,-500.0,0.00013698,2]
[406930535,1772287842147,-500.0,0.00013698,2]
[406930536,1772287842157,-500.0,0.00013698,2]
[406930537,1772287842166,-500.0,0.00013698,2]
[406930538,1772287842178,-500.0,0.00013698,2]
[406930539,1772287842187,-1101.69,0.00013698,2]
[406930540,1772287842201,-1101.69,0.00013698,2]
[406930541,1772287842211,-1101.69,0.00013698,2]
[406930542,1772287842223,-1101.69,0.00013698,2]
[406930543,1772287842233,-1101.69,0.00013698,2]
[406930544,1772287842242,-1101.69,0.00013698,2]
[406930545,1772287842252,-1101.69,0.00013698,2]
[406930546,1772287842262,-1101.69,0.00013698,2]
[406930547,1772287842272,-1101.69,0.00013698,2]
[406930548,1772287842282,-1101.69,0.00013698,2]
[406930549,1772287842291,-1101.69,0.00013698,2]
[406930550,1772287842301,-1101.69,0.00013698,2]
[406930551,1772287842310,-1101.69,0.00013698,2]
[406930552,1772287842322,-1101.69,0.00013698,2]
[406930553,1772287842331,-1101.69,0.00013698,2]
[406930554,1772287842341,-1101.69,0.00013698,2]
[406930555,1772287842350,-1101.69,0.00013698,2]
[406930556,1772287842360,-1101.69,0.00013698,2]
[406930557,1772287842369,-1101.69,0.00013698,2]
[406930558,1772287842379,-500.0,0.00013698,2]
[406930559,1772287842388,-500.0,0.00013698,2]
[406930560,1772287842398,-500.0,0.00013698,2]